[Event "DFMMLV 2024"]
[Site "Braunfels"]
[Date "2024.05.31"]
[Round "3.21"]
[White "Sural, Ceren"]
[Black "Mundt, Alexandra"]
[Result "0-1"]
[ECO "A40"]
[WhiteElo "1793"]
[BlackElo "1874"]
[Annotator "NA RC"]
[PlyCount "222"]
[EventDate "2024.05.30"]
[EventType "team-tourn"]
[EventCountry "GER"]
[SourceTitle "playchess.com"]
[Source "ChessBase"]
[SourceQuality "1"]
[TimeControl "40/5400+30:1800+30"]

1. d4 {[%emt 0:00:03]} g6 {[%emt 0:00:12]} 2. Nf3 {[%emt 0:00:12]} Bg7 {[%emt 0:00:05]} 3. b3 {[%emt 0:00:36]} c5 {[%emt 0:03:11]} 4. e3 {[%emt 0:02:22]} Nc6 {[%emt 0:02:58]} 5. Bb2 {[%emt 0:01:43]} d6 {[%emt 0:00:52]} 6. a3 {[%emt 0:03:15]} Bg4 {[%emt 0:04:27]} 7. Be2 {[%emt 0:05:48]} Bxf3 {[%emt 0:03:09]} 8. Bxf3 {[%emt 0:01:18]} cxd4 {[%emt 0:00:18]} 9. Bxc6+ {[%emt 0:08:34]} bxc6 {[%emt 0:00:01]} 10. exd4 {[%emt 0:02:30]} Nf6 {[%emt 0:00:12]} 11. O-O {[%emt 0:00:51]} O-O {[%emt 0:00:18]} 12. Qf3 {[%emt 0:03:01]} d5 {[%emt 0:07:58]} 13. Nd2 {[%emt 0:04:23]} e6 {[%emt 0:12:12]} 14. Rfe1 {[%emt 0:07:49]} Rc8 {[%emt 0:10:10]} 15. b4 {[%emt 0:06:56]} g5 {[%emt 0:07:39]} 16. h3 {[%emt 0:09:45]} Kh8 {[%emt 0:01:13]} 17. Qe2 {[%emt 0:13:28]} Rg8 {[%emt 0:02:24]} 18. Nf1 {[%emt 0:12:53]} Ne4 {[%emt 0:03:00]} 19. f3 {[%emt 0:05:03]} Nf6 {[%emt 0:02:24]} 20. g4 {[%emt 0:01:19]} Nd7 {[%emt 0:03:35]} 21. Ng3 {[%emt 0:02:29]} Nf8 {[%emt 0:00:08]} 22. Nh5 {[%emt 0:02:37]} Ng6 {[%emt 0:00:04]} 23. Nxg7 {[%emt 0:01:48]} Rxg7 {[%emt 0:00:01]} 24. Bc1 {[%emt 0:01:01]} Qf6 {[%emt 0:00:23]} 25. Be3 {[%emt 0:00:59]} Re8 {[%emt 0:06:39]} 26. Qf2 {[%emt 0:01:19]} Nf4 {[%emt 0:01:02]} 27. Bxf4 {[%emt 0:00:45]} Qxf4 {[%emt 0:00:04]} 28. Rad1 {[%emt 0:00:25]} f6 {[%emt 0:00:15]} 29. Kg2 {[%emt 0:00:35]} Rge7 {[%emt 0:01:15]} 30. Qe3 {[%emt 0:00:52]} Qc7 {[%emt 0:01:46]} 31. Qd3 {[%emt 0:00:39]} Qd7 {[%emt 0:03:42]} 32. Rd2 {[%emt 0:00:19]} e5 {[%emt 0:05:25]} 33. dxe5 {[%emt 0:00:16]} fxe5 {[%emt 0:00:49]} 34. Rde2 {[%emt 0:00:16]} Kg7 {[%emt 0:06:56]} 35. Qd2 {[%emt 0:00:27]} h6 {[%emt 0:00:23]} 36. Qc3 {[%emt 0:00:43]} Qd6 {[%emt 0:00:28]} 37. Qc5 {[%emt 0:00:49]} Qxc5 {[%emt 0:06:42]} 38. bxc5 {[%emt 0:00:01]} Kf6 {[%emt 0:00:06]} 39. Rb1 {[%emt 0:00:03]} Rd8 {[%emt 0:03:13]} 40. c3 {[%emt 0:01:11]} Rde8 {[%emt 0:02:19]} 41. a4 {[%emt 0:30:20]} d4 {[%emt 0:32:09]} 42. c4 {[%emt 0:01:07]} Rd7 {[%emt 0:00:00]} 43. Rb3 {[%emt 0:00:00]} Ree7 {[%emt 0:00:00]} 44. a5 {[%emt 0:00:00]} e4 {[%emt 0:00:00]} 45. fxe4 {[%emt 0:00:00]} Ke5 {[%emt 0:00:00]} 46. Rd3 {[%emt 0:00:00]} Rf7 {[%emt 0:00:00]} 47. Rd1 {[%emt 0:00:00]} Rf4 {[%emt 0:00:49]} 48. Kg3 {[%emt 0:00:00]} Rxe4 {[%emt 0:00:14]} 49. Rde1 {[%emt 0:00:00]} Rxe2 {[%emt 0:00:11]} 50. Rxe2+ {[%emt 0:00:00]} Kf6 {[%emt 0:00:07]} 51. Kf3 {[%emt 0:00:00]} d3 {[%emt 0:02:09]} 52. Rd2 {[%emt 0:00:00]} Ke5 {[%emt 0:01:07]} 53. Ke3 {[%emt 0:00:00]} Rd4 {[%emt 0:00:07]} 54. a6 {[%emt 0:00:00]} Rxc4 {[%emt 0:00:21]} 55. Rxd3 {[%emt 0:00:02]} Rxc5 {[%emt 0:00:32]} 56. Rd7 {[%emt 0:00:11]} Rc3+ {[%emt 0:00:43]} 57. Kd2 {[%emt 0:01:42]} Rxh3 {[%emt 0:00:52]} 58. Rxa7 {[%emt 0:00:10]} Ra3 {[%emt 0:00:03]} 59. Kc2 {[%emt 0:02:22]} Kd5 {[%emt 0:00:29]} 60. Kb2 {[%emt 0:00:51]} Ra5 {[%emt 0:00:10]} 61. Kb3 {[%emt 0:01:47]} Kc5 {[%emt 0:00:23]} 62. Rh7 {[%emt 0:02:01]} Rxa6 {[%emt 0:00:04]} 63. Rxh6 {[%emt 0:00:04]} Ra5 {[%emt 0:00:16]} 64. Rf6 {[%emt 0:00:52]} Kb6 {[%emt 0:00:40]} 65. Rg6 {[%emt 0:00:52]} Re5 {[%emt 0:00:39]} 66. Kc3 {[%emt 0:00:15]} Kc5 {[%emt 0:00:17]} 67. Kd3 {[%emt 0:00:39]} Kd5 {[%emt 0:00:01]} 68. Rg8 {[%emt 0:00:50]} c5 {[%emt 0:00:04]} 69. Rd8+ {[%emt 0:00:27]} Kc6 {[%emt 0:00:09]} 70. Rg8 {[%emt 0:00:50]} Kd5 {[%emt 0:03:42]} 71. Rg6 {[%emt 0:00:32]} c4+ {[%emt 0:00:31]} 72. Kc3 {[%emt 0:00:04]} Ke4 {[%emt 0:00:58]} 73. Rf6 {[%emt 0:00:32]} Kd5 {[%emt 0:00:25]} 74. Rg6 {[%emt 0:00:28]} Kc5 {[%emt 0:00:21]} 75. Rf6 {[%emt 0:00:40]} Re3+ {[%emt 0:00:23]} 76. Kd2 {[%emt 0:00:10]} Rd3+ {[%emt 0:00:06]} 77. Kc2 {[%emt 0:00:14]} Rd5 {[%emt 0:00:37]} 78. Kc3 {[%emt 0:00:10]} Kb5 {[%emt 0:00:57]} 79. Rf8 {[%emt 0:00:30]} Rd3+ {[%emt 0:00:20]} 80. Kc2 {[%emt 0:00:05]} Kb4 {[%emt 0:00:56]} 81. Rf5 {[%emt 0:01:08]} Rg3 {[%emt 0:00:04]} 82. Rxg5 {[%emt 0:00:15]} Rg2+ {[%emt 0:00:05]} 83. Kd1 {[%emt 0:00:14]} Kc3 {[%emt 0:00:08]} 84. Rg8 {[%emt 0:00:53]} Rg1+ {[%emt 0:00:09]} 85. Ke2 {[%emt 0:00:05]} Kc2 {[%emt 0:00:03]} 86. g5 {[%emt 0:00:41]} c3 {[%emt 0:00:04]} 87. g6 {[%emt 0:00:18]} Kc1 {[%emt 0:01:01]} 88. g7 {[%emt 0:00:35]} c2 {[%emt 0:00:42]} 89. Kf2 {[%emt 0:00:46]} Rg6 {[%emt 0:00:09]} 90. Ke2 {[%emt 0:01:22]} Re6+ {[%emt 0:02:03]} 91. Kf2 {[%emt 0:00:02]} Re7 {[%emt 0:00:11]} 92. Kf1 {[%emt 0:00:37]} Rb7 {[%emt 0:00:22]} 93. Ke1 {[%emt 0:00:58]} Kb2 {[%emt 0:00:09]} 94. Rc8 {[%emt 0:00:42]} Rxg7 {[%emt 0:00:03]} 95. Rb8+ {[%emt 0:00:21]} Kc1 {[%emt 0:01:10]} 96. Rb6 {[%emt 0:00:12]} Rg3 {[%emt 0:01:19]} 97. Ke2 {[%emt 0:01:02]} Rg2+ {[%emt 0:00:15]} 98. Ke1 {[%emt 0:00:09]} Rd2 {[%emt 0:00:52]} 99. Rb8 {[%emt 0:00:04]} Rd4 {[%emt 0:00:11]} 100. Ke2 {[%emt 0:00:41]} Rd5 {[%emt 0:00:37]} 101. Rb7 {[%emt 0:00:29]} Re5+ {[%emt 0:00:15]} 102. Kf2 {[%emt 0:01:06]} Kd2 {[%emt 0:00:31]} 103. Rd7+ {[%emt 0:00:11]} Kc3 {[%emt 0:00:13]} 104. Rc7+ {[%emt 0:00:12]} Kb3 {[%emt 0:01:20]} 105. Kf3 {[%emt 0:00:41]} Kb2 {[%emt 0:00:37]} 106. Rb7+ {[%emt 0:00:09]} Kc3 {[%emt 0:00:33]} 107. Rc7+ {[%emt 0:00:01]} Kd3 {[%emt 0:00:22]} 108. Kf2 {[%emt 0:00:14]} Re4 {[%emt 0:00:09]} 109. Rd7+ {[%emt 0:01:11]} Rd4 {[%emt 0:00:08]} 110. Rc7 {[%emt 0:00:14]} Rc4 {[%emt 0:00:08]} 111. Rd7+ {[%emt 0:01:35]} Kc3 {[%emt 0:00:07]} 0-1

[Event "DFMMLV 2024"]
[Site "Braunfels"]
[Date "2024.05.31"]
[Round "3.22"]
[White "Rosmait, Emily"]
[Black "Tobianski, Karina"]
[Result "1-0"]
[ECO "B01"]
[WhiteElo "1896"]
[BlackElo "1816"]
[Annotator "NA RC"]
[PlyCount "96"]
[EventDate "2024.05.30"]
[EventType "team-tourn"]
[EventCountry "GER"]
[SourceTitle "playchess.com"]
[Source "ChessBase"]
[SourceQuality "1"]
[TimeControl "40/5400+30:1800+30"]

1. e4 {[%emt 0:00:03]} d5 {[%emt 0:00:06]} 2. exd5 {[%emt 0:00:07]} Nf6 {[%emt 0:00:06]} 3. d4 {[%emt 0:00:08]} Nxd5 {[%emt 0:00:07]} 4. Nf3 {[%emt 0:00:06]} Bg4 {[%emt 0:00:21]} 5. Be2 {[%emt 0:00:18]} e6 {[%emt 0:00:20]} 6. O-O {[%emt 0:01:37]} Be7 {[%emt 0:00:32]} 7. c4 {[%emt 0:11:03]} Nb6 {[%emt 0:00:30]} 8. h3 {[%emt 0:03:39]} Bh5 {[%emt 0:03:19]} 9. Nc3 {[%emt 0:09:27]} O-O {[%emt 0:01:10]} 10. Be3 {[%emt 0:01:54]} Nc6 {[%emt 0:00:34]} 11. b3 {[%emt 0:01:40]} Bg6 {[%emt 0:01:01]} 12. a3 {[%emt 0:02:46]} Bf6 {[%emt 0:07:05]} 13. b4 {[%emt 0:04:07]} a6 {[%emt 0:04:48]} 14. Rc1 {[%emt 0:03:49]} Qe7 {[%emt 0:02:54]} 15. Qb3 {[%emt 0:03:05]} Rfd8 {[%emt 0:04:41]} 16. Rfd1 {[%emt 0:01:18]} Rd7 {[%emt 0:11:47]} 17. Rd2 {[%emt 0:13:45]} Rad8 {[%emt 0:04:12]} 18. Rcd1 {[%emt 0:00:58]} Nc8 {[%emt 0:12:15]} 19. c5 {[%emt 0:08:56]} Qe8 {[%emt 0:06:17]} 20. g4 {[%emt 0:04:17]} h6 {[%emt 0:02:39]} 21. h4 {[%emt 0:02:55]} Be7 {[%emt 0:03:15]} 22. a4 {[%emt 0:00:41]} a5 {[%emt 0:04:26]} 23. b5 {[%emt 0:02:59]} Nb4 {[%emt 0:03:37]} 24. h5 {[%emt 0:00:08]} Bh7 {[%emt 0:06:38]} 25. Ne5 {[%emt 0:01:08]} c6 {[%emt 0:01:36]} 26. Nxd7 {[%emt 0:01:24]} Qxd7 {[%emt 0:00:25]} 27. Bf3 {[%emt 0:03:25]} Bf6 {[%emt 0:01:58]} 28. bxc6 {[%emt 0:03:41]} bxc6 {[%emt 0:00:57]} 29. Ne4 {[%emt 0:00:41]} Bxe4 {[%emt 0:00:36]} 30. Bxe4 {[%emt 0:00:09]} Ne7 {[%emt 0:00:16]} 31. Bf4 {[%emt 0:06:59]} Ned5 {[%emt 0:04:13]} 32. Bxd5 {[%emt 0:01:36]} Qxd5 {[%emt 0:01:21]} 33. Qxd5 {[%emt 0:00:55]} Nxd5 {[%emt 0:00:03]} 34. Bd6 {[%emt 0:03:26]} Nc3 {[%emt 0:02:51]} 35. Re1 {[%emt 0:00:08]} Nd5 {[%emt 0:00:54]} 36. Rb1 {[%emt 0:01:08]} Nb4 {[%emt 0:01:14]} 37. Bc7 {[%emt 0:00:57]} Rxd4 {[%emt 0:02:09]} 38. Rxd4 {[%emt 0:00:25]} Bxd4 {[%emt 0:00:02]} 39. Bxa5 {[%emt 0:00:25]} Na6 {[%emt 0:00:56]} 40. Bb6 {[%emt 0:02:11]} Kf8 {[%emt 0:04:48]} 41. Kf1 {[%emt 0:32:04]} Ke7 {[%emt 0:30:43]} 42. Ke2 {[%emt 0:00:00]} g6 {[%emt 0:00:00]} 43. Rd1 {[%emt 0:00:00]} Bxc5 {[%emt 0:00:00]} 44. Bxc5+ {[%emt 0:00:00]} Nxc5 {[%emt 0:00:00]} 45. a5 {[%emt 0:00:00]} gxh5 {[%emt 0:00:00]} 46. gxh5 {[%emt 0:00:00]} e5 {[%emt 0:00:00]} 47. Ke3 {[%emt 0:00:00]} f5 {[%emt 0:00:00]} 48. Rg1 {[%emt 0:00:00]} f4+ {[%emt 0:06:48]} 1-0

[Event "DFMMLV 2024"]
[Site "Braunfels"]
[Date "2024.05.31"]
[Round "3.23"]
[White "Neumann, Ramona"]
[Black "Freter, Anke"]
[Result "1-0"]
[ECO "B60"]
[WhiteElo "1774"]
[BlackElo "1918"]
[Annotator "NA RC"]
[PlyCount "51"]
[EventDate "2024.05.30"]
[EventType "team-tourn"]
[EventCountry "GER"]
[SourceTitle "playchess.com"]
[Source "ChessBase"]
[SourceQuality "1"]
[TimeControl "40/5400+30:1800+30"]

1. e4 {[%emt 0:00:04]} c5 {[%emt 0:00:02]} 2. Nf3 {[%emt 0:00:12]} Nc6 {[%emt 0:00:06]} 3. d4 {[%emt 0:00:15]} cxd4 {[%emt 0:00:06]} 4. Nxd4 {[%emt 0:00:05]} Nf6 {[%emt 0:00:13]} 5. Nc3 {[%emt 0:00:50]} d6 {[%emt 0:02:57]} 6. Bg5 {[%emt 0:03:10]} Qa5 {[%emt 0:05:17]} 7. Bxf6 {[%emt 0:04:53]} gxf6 {[%emt 0:00:19]} 8. Nb3 {[%emt 0:18:32]} Qd8 {[%emt 0:02:12]} 9. Qh5 {[%emt 0:05:31]} a6 {[%emt 0:07:36]} 10. O-O-O {[%emt 0:09:42]} Be6 {[%emt 0:10:48]} 11. Nd5 {[%emt 0:08:09]} Rc8 {[%emt 0:04:11]} 12. Bc4 {[%emt 0:09:46]} Bxd5 {[%emt 0:08:30]} 13. Bxd5 {[%emt 0:01:24]} Ne5 {[%emt 0:01:45]} 14. Rhe1 {[%emt 0:12:10]} Qd7 {[%emt 0:11:23]} 15. f4 {[%emt 0:06:30]} e6 {[%emt 0:05:04]} 16. fxe5 {[%emt 0:01:02]} exd5 {[%emt 0:00:45]} 17. exf6 {[%emt 0:01:08]} dxe4 {[%emt 0:01:28]} 18. Rxe4+ {[%emt 0:00:32]} Kd8 {[%emt 0:00:06]} 19. Qa5+ {[%emt 0:04:10]} Qc7 {[%emt 0:00:29]} 20. Qxc7+ {[%emt 0:01:46]} Rxc7 {[%emt 0:00:42]} 21. Kb1 {[%emt 0:00:40]} Rg8 {[%emt 0:03:03]} 22. g3 {[%emt 0:01:16]} Bh6 {[%emt 0:02:33]} 23. Rxd6+ {[%emt 0:00:49]} Rd7 {[%emt 0:00:22]} 24. Rxd7+ {[%emt 0:00:23]} Kxd7 {[%emt 0:00:01]} 25. Re7+ {[%emt 0:00:30]} Kd8 26. Rxf7 {[%emt 0:00:30]} 1-0

[Event "DFMMLV 2024"]
[Site "Braunfels"]
[Date "2024.05.31"]
[Round "3.24"]
[White "Leib, Britta"]
[Black "Hoelzer, Jeanette"]
[Result "1-0"]
[ECO "C54"]
[WhiteElo "1920"]
[BlackElo "1791"]
[Annotator "RC"]
[PlyCount "117"]
[EventDate "2024.05.30"]
[EventType "team-tourn"]
[EventCountry "GER"]
[SourceTitle "playchess.com"]
[Source "ChessBase"]
[SourceQuality "1"]
[TimeControl "40/5400+30:1800+30"]

1. e4 {[%emt 0:00:04]} e5 {[%emt 0:00:08]} 2. Nf3 {[%emt 0:00:05]} Nc6 {[%emt 0:00:07]} 3. Bc4 {[%emt 0:00:04]} Bc5 {[%emt 0:00:11]} 4. c3 {[%emt 0:02:24]} Nf6 {[%emt 0:00:09]} 5. d3 {[%emt 0:09:57]} O-O {[%emt 0:00:40]} 6. O-O {[%emt 0:02:48]} d6 {[%emt 0:01:38]} 7. b4 {[%emt 0:08:20]} Bb6 {[%emt 0:01:40]} 8. Nbd2 {[%emt 0:03:27]} Re8 {[%emt 0:10:29]} 9. a4 {[%emt 0:08:03]} a5 {[%emt 0:04:17]} 10. Qb3 {[%emt 0:04:00]} Be6 {[%emt 0:05:36]} 11. b5 {[%emt 0:01:40]} Nb8 {[%emt 0:07:05]} 12. d4 {[%emt 0:08:37]} exd4 {[%emt 0:07:30]} 13. cxd4 {[%emt 0:06:18]} Bxc4 {[%emt 0:03:47]} 14. Nxc4 {[%emt 0:02:32]} Nxe4 {[%emt 0:08:14]} 15. Nxb6 {[%emt 0:02:37]} cxb6 {[%emt 0:00:57]} 16. Ba3 {[%emt 0:07:04]} Nd7 {[%emt 0:04:14]} 17. Rac1 {[%emt 0:06:17]} Ndf6 {[%emt 0:03:47]} 18. h3 {[%emt 0:00:30]} d5 {[%emt 0:05:26]} 19. Qc2 {[%emt 0:02:45]} Rc8 {[%emt 0:10:06]} 20. Qd3 {[%emt 0:01:09]} Rc7 {[%emt 0:11:18]} 21. Ne5 {[%emt 0:05:06]} Nd7 {[%emt 0:04:59]} 22. Ng4 {[%emt 0:09:29]} Ndf6 {[%emt 0:02:59]} 23. Ne5 {[%emt 0:03:27]} Nd7 {[%emt 0:00:50]} 24. Rxc7 {[%emt 0:00:08]} Qxc7 {[%emt 0:00:20]} 25. Nxd7 {[%emt 0:02:48]} Qxd7 {[%emt 0:00:47]} 26. Rc1 {[%emt 0:00:49]} Rc8 {[%emt 0:01:30]} 27. f3 {[%emt 0:01:32]} Nf6 {[%emt 0:01:14]} 28. Rc3 {[%emt 0:00:25]} Rxc3 {[%emt 0:00:29]} 29. Qxc3 {[%emt 0:00:02]} h6 {[%emt 0:01:05]} 30. Kf2 {[%emt 0:01:05]} Nh5 {[%emt 0:03:04]} 31. Qe3 {[%emt 0:01:04]} Nf6 {[%emt 0:00:41]} 32. Qe7 {[%emt 0:00:10]} Qxe7 {[%emt 0:00:18]} 33. Bxe7 {[%emt 0:00:01]} Nd7 {[%emt 0:00:26]} 34. Ke3 {[%emt 0:00:23]} f5 {[%emt 0:00:41]} 35. Kf4 {[%emt 0:00:40]} g6 {[%emt 0:00:24]} 36. g4 {[%emt 0:01:10]} Kf7 {[%emt 0:00:30]} 37. Bd8 {[%emt 0:00:02]} fxg4 {[%emt 0:00:12]} 38. fxg4 {[%emt 0:00:41]} Ke6 {[%emt 0:00:20]} 39. Kg3 {[%emt 0:00:30]} Kf7 {[%emt 0:00:42]} 40. h4 {[%emt 0:00:05]} Ke6 {[%emt 0:00:44]} 41. Kf4 {[%emt 0:30:08]} Kf7 {[%emt 0:30:48]} 42. h5 {[%emt 0:00:00]} gxh5 {[%emt 0:00:00]} 43. gxh5 {[%emt 0:00:00]} Ke6 {[%emt 0:00:00]} 44. Bc7 {[%emt 0:00:00]} Kf6 {[%emt 0:00:00]} 45. Kg4 {[%emt 0:00:00]} Ke6 {[%emt 0:00:00]} 46. Bf4 {[%emt 0:00:00]} Nf6+ {[%emt 0:00:00]} 47. Kf3 {[%emt 0:00:00]} Nxh5 {[%emt 0:00:00]} 48. Bc7 {[%emt 0:00:00]} Nf6 {[%emt 0:00:00]} 49. Bxb6 {[%emt 0:00:00]} Nd7 {[%emt 0:01:12]} 50. Bxa5 {[%emt 0:00:00]} Kd6 {[%emt 0:01:11]} 51. Bd2 {[%emt 0:00:00]} h5 {[%emt 0:00:35]} 52. a5 {[%emt 0:00:00]} Kc7 {[%emt 0:02:06]} 53. Kf4 {[%emt 0:00:00]} Kd6 {[%emt 0:00:30]} 54. Kf5 {[%emt 0:00:00]} h4 {[%emt 0:00:56]} 55. Bf4+ {[%emt 0:00:01]} Ke7 {[%emt 0:00:15]} 56. Bg5+ {[%emt 0:00:12]} Kd6 {[%emt 0:00:16]} 57. Bxh4 {[%emt 0:00:25]} Kc7 {[%emt 0:00:35]} 58. Bg3+ {[%emt 0:00:57]} Kc8 {[%emt 0:00:16]} 59. Bd6 {[%emt 0:00:48]} 1-0

[Event "DFMMLV 2024"]
[Site "Braunfels"]
[Date "2024.05.31"]
[Round "3.26"]
[White "Kalina, Lena"]
[Black "Peglau, Dora"]
[Result "0-1"]
[ECO "D20"]
[WhiteElo "1918"]
[BlackElo "2002"]
[Annotator "NA RC"]
[PlyCount "52"]
[EventDate "2024.05.30"]
[EventType "team-tourn"]
[EventCountry "GER"]
[SourceTitle "playchess.com"]
[Source "ChessBase"]
[SourceQuality "1"]
[TimeControl "40/5400+30:1800+30"]

1. d4 {[%emt 0:00:02]} d5 {[%emt 0:00:12]} 2. c4 {[%emt 0:00:17]} dxc4 {[%emt 0:00:07]} 3. e3 {[%emt 0:00:29]} e5 {[%emt 0:00:39]} 4. Bxc4 {[%emt 0:01:26]} Nc6 {[%emt 0:00:45]} 5. d5 {[%emt 0:03:11]} Na5 {[%emt 0:03:45]} 6. Qa4+ {[%emt 0:07:45]} c6 {[%emt 0:00:24]} 7. dxc6 {[%emt 0:01:25]} Nxc6 {[%emt 0:00:49]} 8. Nc3 {[%emt 0:08:14]} Bd6 {[%emt 0:03:29]} 9. Nf3 {[%emt 0:03:30]} Nf6 {[%emt 0:02:59]} 10. O-O {[%emt 0:02:15]} O-O {[%emt 0:05:19]} 11. e4 {[%emt 0:05:35]} Bg4 {[%emt 0:03:23]} 12. Ne1 {[%emt 0:04:37]} a6 {[%emt 0:01:43]} 13. Bd5 {[%emt 0:04:18]} b5 {[%emt 0:03:41]} 14. Qc2 {[%emt 0:01:32]} Nd4 {[%emt 0:01:55]} 15. Qd3 {[%emt 0:01:43]} Nxd5 {[%emt 0:02:29]} 16. exd5 {[%emt 0:00:14]} b4 {[%emt 0:02:12]} 17. f3 {[%emt 0:01:35]} Bd7 {[%emt 0:01:12]} 18. Ne4 {[%emt 0:07:32]} Bb5 {[%emt 0:00:21]} 19. Qd2 {[%emt 0:01:23]} Bxf1 {[%emt 0:03:17]} 20. Kxf1 {[%emt 0:00:20]} Rc8 {[%emt 0:02:27]} 21. b3 {[%emt 0:02:23]} Be7 {[%emt 0:03:54]} 22. Bb2 {[%emt 0:02:31]} f5 {[%emt 0:05:41]} 23. Ng3 {[%emt 0:02:28]} Qxd5 {[%emt 0:00:52]} 24. Rd1 {[%emt 0:01:24]} Qb5+ {[%emt 0:05:14]} 25. Kg1 {[%emt 0:01:23]} Rfd8 {[%emt 0:01:36]} 26. Qe3 {[%emt 0:08:43]} f4 {[%emt 0:09:33]} 0-1

[Event "DFMMLV 2024"]
[Site "Braunfels"]
[Date "2024.05.31"]
[Round "3.27"]
[White "Steinbacher, Claudia"]
[Black "Krasnopeyeva, Julia"]
[Result "1-0"]
[ECO "E81"]
[WhiteElo "2027"]
[BlackElo "1918"]
[Annotator "NA RC"]
[PlyCount "87"]
[EventDate "2024.05.30"]
[EventType "team-tourn"]
[EventCountry "GER"]
[SourceTitle "playchess.com"]
[Source "ChessBase"]
[SourceQuality "1"]
[TimeControl "40/5400+30:1800+30"]

1. d4 {[%emt 0:00:02]} Nf6 {[%emt 0:00:05]} 2. c4 {[%emt 0:00:01]} g6 {[%emt 0:00:07]} 3. Nc3 {[%emt 0:00:01]} Bg7 {[%emt 0:00:10]} 4. e4 {[%emt 0:00:03]} d6 {[%emt 0:00:07]} 5. f3 {[%emt 0:00:07]} O-O {[%emt 0:00:27]} 6. Be3 {[%emt 0:00:07]} a6 {[%emt 0:00:42]} 7. Qd2 {[%emt 0:05:09]} Nbd7 {[%emt 0:02:56]} 8. Rd1 {[%emt 0:06:32]} b6 {[%emt 0:08:44]} 9. Bd3 {[%emt 0:04:58]} c5 {[%emt 0:02:01]} 10. Nge2 {[%emt 0:00:06]} Bb7 {[%emt 0:04:46]} 11. O-O {[%emt 0:02:23]} cxd4 {[%emt 0:02:18]} 12. Nxd4 {[%emt 0:00:06]} Rc8 {[%emt 0:00:43]} 13. b3 {[%emt 0:00:17]} Nc5 {[%emt 0:01:10]} 14. Bb1 {[%emt 0:05:00]} Nfd7 {[%emt 0:05:24]} 15. Bh6 {[%emt 0:02:02]} Ne5 {[%emt 0:05:14]} 16. Bxg7 {[%emt 0:02:11]} Kxg7 {[%emt 0:00:06]} 17. f4 {[%emt 0:02:20]} Ned7 {[%emt 0:04:13]} 18. Nf3 {[%emt 0:05:30]} Qc7 {[%emt 0:04:50]} 19. Rfe1 {[%emt 0:03:51]} b5 {[%emt 0:02:14]} 20. Nd5 {[%emt 0:00:05]} Bxd5 {[%emt 0:00:18]} 21. cxd5 {[%emt 0:00:30]} Qb6 {[%emt 0:00:30]} 22. Kh1 {[%emt 0:00:30]} b4 {[%emt 0:54:25]} 23. h3 a5 {[%emt 0:00:00]} 24. Nd4 {[%emt 0:09:44]} e5 {[%emt 0:00:00]} 25. dxe6 {[%emt 0:00:16]} fxe6 {[%emt 0:00:00]} 26. f5 {[%emt 0:05:38]} Rf6 {[%emt 0:00:00]} 27. Nf3 {[%emt 0:01:20]} Ne5 {[%emt 0:02:30]} 28. Qxd6 {[%emt 0:10:01]} Qxd6 {[%emt 0:00:00]} 29. Rxd6 {[%emt 0:00:01]} Nxf3 {[%emt 0:00:00]} 30. gxf3 {[%emt 0:00:01]} exf5 {[%emt 0:00:00]} 31. Rd5 {[%emt 0:03:18]} fxe4 {[%emt 0:00:00]} 32. fxe4 {[%emt 0:00:05]} Rf3 {[%emt 0:00:00]} 33. Kg2 {[%emt 0:00:30]} Rc3 {[%emt 0:00:00]} 34. e5 {[%emt 0:02:14]} Re8 {[%emt 0:00:00]} 35. h4 {[%emt 0:03:27]} Re6 {[%emt 0:00:00]} 36. Rd8 {[%emt 0:03:54]} Re7 {[%emt 0:00:00]} 37. Ra8 {[%emt 0:03:26]} Nb7 {[%emt 0:00:00]} 38. Ra7 {[%emt 0:01:11]} Rcc7 {[%emt 0:00:00]} 39. Bd3 {[%emt 0:00:24]} Kh6 {[%emt 0:00:00]} 40. Bc4 {[%emt 0:02:39]} Kh5 {[%emt 0:00:00]} 41. Kg3 {[%emt 0:35:29]} g5 {[%emt 0:14:32]} 42. Ra6 {[%emt 0:05:37]} gxh4+ {[%emt 0:03:55]} 43. Kf4 {[%emt 0:00:10]} Rc5 {[%emt 0:01:49]} 44. Be2# {[%emt 0:00:25]} 1-0